Workbook

Sheet Sheet1
A1: a1 | B1: 50 | D1: b3=AC | E1: 40 | O1: =PI()/180 -> 0.01745329252 | Q1: x | R1: y
A2: a2 | B2: 25 | D2: c3=BC | E2: 50 | P2: A0 | Q2: 0 | R2: 0
A3: a3 | B3: 50 | D3: b3 | E3: =ACOS((B3^2+E1^2-E2^2)/(2*B3*E1)) -> 1.159279481 | F3: =E3/D_R -> 66.42182152 | P3: A | Q3: =B2*COS(C11) -> -21.65063509 | R3: =B2*SIN(C11) -> 12.5
A4: a4 | B4: 30 | P4: B | Q4: =Q8+B4*COS(J11) -> 27.76267524 | R4: =R8+B4*SIN(J11) -> 20.13706501
P5: C | Q5: =L11 -> -11.43796435 | R5: =M11 -> 51.17429839
P6: A | Q6: =Q3 -> -21.65063509 | R6: =R3 -> 12.5
P7: B | Q7: =Q4 -> 27.76267524 | R7: =R4 -> 20.13706501
J8: 0.15334153 | K8: 2.405718328 | P8: B0 | Q8: =B1 -> 50 | R8: 0
B9: Degrees | C9: Radians
A10: 6 | B10: q12 | C10: q12 | D10: xs | E10: ys | F10: s | G10: f | H10: y | I10: m | J10: q14 | K10: q13 | L10: Xc | M10: Yc
A11: 205 | B11: =MOD(A11*A10,360) -> 150 | C11: =B11*D_R -> 2.617993878 | D11: =-$B$1+$B$2*COS(C11) -> -71.65063509 | E11: =$B$2*SIN(C11) -> 12.5 | F11: =SQRT(D11^2+E11^2) -> 72.73282278 | G11: =ATAN2(D11,E11) -> 2.968873289 | H11: =ACOS((F11^2+$B$4^2-$B$3^2)/(2*F11*$B$4)) -> 0.5631549604 | I11: =ACOS(($B$3^2+$B$4^2-F11^2)/(2*$B$3*$B$4)) -> 2.252376798 | J11: =G11-H11 -> 2.405718328 | K11: =J11-I11 -> 0.15334153 | L11: =$B$2*COS(C11)+$E$1*COS(K11+$E$3) -> -11.43796435 | M11: =$B$2*SIN(C11)+$E$1*SIN(K11+$E$3) -> 51.17429839
G12: =G11/D_R -> 170.1039094 | H12: =H11/D_R -> 32.26640244 | I12: =I11/D_R -> 129.0516844 | J12: =J11/D_R -> 137.8375069 | K12: =K11/D_R -> 8.785822496
I17: Radians | N17: Degrees
B18: q12 | C18: q12 | D18: xs | E18: ys | F18: s | G18: f | H18: y | I18: m | J18: q14 | K18: q13 | L18: Xc | M18: Yc | N18: m | O18: q14
B19: 0 | C19: =B19*D_R -> 0 | D19: =-$B$1+$B$2*COS(C19) -> -25 | E19: =$B$2*SIN(C19) -> 0 | F19: =SQRT(D19^2+E19^2) -> 25 | G19: =ATAN2(D19,E19) -> 3.141592654 | H19: =ACOS((F19^2+$B$4^2-$B$3^2)/(2*F19*$B$4)) -> 2.278380764 | I19: =ACOS(($B$3^2+$B$4^2-F19^2)/(2*$B$3*$B$4)) -> 0.3897607328 | J19: =G19-H19 -> 0.8632118901 | K19: =J19-I19 -> 0.4734511573 | L19: =$B$2*COS(C19)+$E$1*COS(K19+$E$3) -> 22.52421106 | M19: =$B$2*SIN(C19)+$E$1*SIN(K19+$E$3) -> 39.92330734 | N19: =I19/D_R -> 22.33164501 | O19: =J19/D_R -> 49.45839813
B20: 5 | C20: =B20*D_R -> 0.0872664626 | D20: =-$B$1+$B$2*COS(C20) -> -25.09513255 | E20: =$B$2*SIN(C20) -> 2.178893569 | F20: =SQRT(D20^2+E20^2) -> 25.18954654 | G20: =ATAN2(D20,E20) -> 3.054984508 | H20: =ACOS((F20^2+$B$4^2-$B$3^2)/(2*F20*$B$4)) -> 2.263752621 | I20: =ACOS(($B$3^2+$B$4^2-F20^2)/(2*$B$3*$B$4)) -> 0.3980234089 | J20: =G20-H20 -> 0.7912318864 | K20: =J20-I20 -> 0.3932084775 | L20: =$B$2*COS(C20)+$E$1*COS(K20+$E$3) -> 25.63716128 | M20: =$B$2*SIN(C20)+$E$1*SIN(K20+$E$3) -> 42.17218983 | N20: =I20/D_R -> 22.80506148 | O20: =J20/D_R -> 45.33424771
B21: 10 | C21: =B21*D_R -> 0.1745329252 | D21: -25.37980617 | E21: 4.341204442 | F21: 25.74841 | G21: 2.972182603 | H21: 2.222475719 | I21: 0.4218334585 | J21: 0.7497068841 | K21: 0.3278734257 | L21: 27.96203075 | M21: 44.20136157 | N21: =I21/D_R -> 24.16927683 | O21: =J21/D_R -> 42.95504033
B22: 15 | C22: =B22*D_R -> 0.2617993878 | D22: -25.85185434 | E22: 6.470476128 | F22: 26.64930457 | G22: 2.896340504 | H22: 2.160959288 | I22: 0.4587542392 | J22: 0.7353812158 | K22: 0.2766269766 | L22: 29.52739293 | M22: 46.10712204 | N22: =I22/D_R -> 26.28468174 | O22: =J22/D_R -> 42.13424
B23: 20 | C23: =B23*D_R -> 0.3490658504 | D23: -26.50768448 | E23: 8.550503583 | F23: 27.85262013 | G23: 2.829562914 | H23: 2.086572344 | I23: 0.5058893574 | J23: 0.7429905699 | K23: 0.2371012125 | L23: 30.43362219 | M23: 47.94362813 | N23: =I23/D_R -> 28.98532508 | O23: =J23/D_R -> 42.57022387
B24: 25 | C24: =B24*D_R -> 0.436332313 | D24: -27.34230532 | E24: 10.56545654 | F24: 29.31263435 | G24: 2.772852708 | H24: 2.005552152 | I24: 0.5606246207 | J24: 0.767300556 | K24: 0.2066759353 | L24: 30.79415065 | M24: 49.72919084 | N24: =I24/D_R -> 32.12142466 | O24: =J24/D_R -> 43.96308348
B25: 30 | C25: =B25*D_R -> 0.5235987756 | D25: -28.34936491 | E25: 12.5 | F25: 30.98284187 | G25: 2.726309415 | H25: 1.922300862 | I25: 0.62090119 | J25: 0.8040085527 | K25: 0.1831073627 | L25: 30.70777923 | M25: 51.46111061 | N25: =I25/D_R -> 35.57501768 | O25: =J25/D_R -> 46.06629676
B26: 35 | C26: =B26*D_R -> 0.6108652382 | D26: -29.52119889 | E26: 14.33941091 | F26: 32.81950471 | G26: 2.689423912 | H26: 1.839553273 | I26: 0.6851986201 | J26: 0.8498706388 | K26: 0.1646720187 | L26: 30.25262698 | M26: 53.1269389 | N26: =I26/D_R -> 39.25898906 | O26: =J26/D_R -> 48.69400074
B27: 40 | C27: =B27*D_R -> 0.6981317008 | D27: -30.84888892 | E27: 16.06969024 | F27: 34.78345716 | G27: 2.661352334 | H27: 1.758826019 | I27: 0.7524201847 | J27: 0.9025263141 | K27: 0.1501061294 | L27: 29.488855 | M27: 54.7107442 | N27: =I27/D_R -> 43.110501 | O27: =J27/D_R -> 51.7109487
B28: 45 | C28: =B28*D_R -> 0.7853981634 | D28: -32.32233047 | E28: 17.67766953 | F28: 36.84064396 | G28: 2.641118617 | H28: 1.680845827 | I28: 0.8217750434 | J28: 0.96027279 | K28: 0.1384977466 | L28: 28.463267 | M28: 56.19611819 | N28: =I28/D_R -> 47.08424169 | O28: =J28/D_R -> 55.01957805
B29: 50 | C29: =B29*D_R -> 0.872664626 | D29: -33.93030976 | E29: 19.15111108 | F29: 38.96191699 | G29: 2.627742171 | H29: 1.605867253 | I29: 0.892685404 | J29: 1.021874919 | K29: 0.1291895147 | L29: 27.21335395 | M29: 57.56749768 | N29: =I29/D_R -> 51.14710608 | O29: =J29/D_R -> 58.54912003
B30: 55 | C30: =B30*D_R -> 0.9599310886 | D30: -35.66058909 | E30: 20.47880111 | F30: 41.12248666 | G30: 2.620307275 | H30: 1.533882382 | I30: 0.9647199968 | J30: 1.086424893 | K30: 0.1217048962 | L30: 25.7702918 | M30: 58.81070638 | N30: =I30/D_R -> 55.27438423 | O30: =J30/D_R -> 62.24756113
B31: 60 | C31: =B31*D_R -> 1.047197551 | D31: -37.5 | E31: 21.65063509 | F31: 43.30127019 | G31: 2.617993878 | H31: 1.464750127 | I31: 1.037548018 | J31: 1.153243751 | K31: 0.1156957335 | L31: 24.16101577 | M31: 59.91315868 | N31: =I31/D_R -> 59.44712245 | O31: =J31/D_R -> 66.07599969
B32: 65 | C32: =B32*D_R -> 1.134464014 | D32: -39.43454346 | E32: 22.65769468 | F32: 45.48026325 | G32: 2.620085612 | H32: 1.398272285 | I32: 1.110907428 | J32: 1.221813327 | K32: 0.1109058984 | L32: 22.40960903 | M32: 60.86392521 | N32: =I32/D_R -> 63.65030707 | O32: =J32/D_R -> 70.00474697
B33: 70 | C33: =B33*D_R -> 1.221730476 | D33: -41.44949642 | E33: 23.49231552 | F33: 47.64398852 | G33: 2.625965717 | H33: 1.33423653 | I33: 1.18458291 | J33: 1.291729187 | K33: 0.1071462771 | L33: 20.53821298 | M33: 61.65374662 | N33: =I33/D_R -> 67.87160123 | O33: =J33/D_R -> 74.01063069
B34: 75 | C34: =B34*D_R -> 1.308996939 | D34: -43.52952387 | E34: 24.14814566 | F34: 49.77903562 | G34: 2.635107426 | H34: 1.272439689 | I34: 1.258390181 | J34: 1.362667737 | K34: 0.1042775561 | L34: 18.56761055 | M34: 62.27503038 | N34: =I34/D_R -> 72.10044637 | O34: =J34/D_R -> 78.07511023
B35: 80 | C35: =B35*D_R -> 1.396263402 | D35: -45.65879556 | E35: 24.62019383 | F35: 51.87368847 | G35: 2.647062504 | H35: 1.212699681 | I35: 1.332164463 | J35: 1.434362822 | K35: 0.1021983589 | L35: 16.51758597 | M35: 62.72184383 | N35: =I35/D_R -> 76.32740137 | O35: =J35/D_R -> 82.182936
B36: 85 | C36: =B36*D_R -> 1.483529864 | D36: -47.82110643 | E36: 24.90486745 | F36: 53.91762832 | G36: 2.661449845 | H36: 1.154861158 | I36: 1.405751598 | J36: 1.506588688 | K36: 0.1008370899 | L36: 14.40713039 | M36: 62.98990683 | N36: =I36/D_R -> 80.5436336 | O36: =J36/D_R -> 86.32117327
B37: 90 | C37: =B37*D_R -> 1.570796327 | D37: -50 | E37: 25 | F37: 55.90169944 | G37: 2.677945045 | H37: 1.098797853 | I37: 1.479000796 | J37: 1.579147191 | K37: 0.1001463948 | L37: 12.25453905 | M37: 63.07658431 | N37: =I37/D_R -> 84.74050354 | O37: =J37/D_R -> 90.47846929
B38: 95 | C38: =B38*D_R -> 1.658062789 | D38: -52.17889357 | E38: 24.90486745 | F38: 57.81772528 | G38: 2.696271246 | H38: 1.044413429 | I38: 1.551758296 | J38: 1.651857817 | K38: 0.1000995216 | L38: 10.07743024 | M38: 62.98087731 | N38: =I38/D_R -> 88.90920117 | O38: =J38/D_R -> 94.64448129
B39: 100 | C39: =B39*D_R -> 1.745329252 | D39: -54.34120444 | E39: 24.62019383 | F39: 59.65836441 | G39: 2.71619133 | H39: 0.991641837 | I39: 1.623861376 | J39: 1.724549493 | K39: 0.1006881177 | L39: 7.892705857 | M39: 62.70341111 | N39: =I39/D_R -> 93.04040334 | O39: =J39/D_R -> 98.80940753
B40: 105 | C40: =B40*D_R -> 1.832595715 | D40: -56.47047613 | E40: 24.14814566 | F40: 61.41699775 | G40: 2.737501334 | H40: 0.9404478552 | I40: 1.695132311 | J40: 1.797053479 | K40: 0.1019211683 | L40: 5.716466346 | M40: 62.24641902 | N40: =I40/D_R -> 97.12392713 | O40: =J40/D_R -> 102.9635799
B41: 110 | C41: =B41*D_R -> 1.919862177 | D41: -58.55050358 | E41: 23.49231552 | F41: 63.0876403 | G41: 2.760024955 | H41: 0.8908281711 | I41: 1.765371885 | J41: 1.869196784 | K41: 0.1038248995 | L41: 3.563887981 | M41: 61.61372049 | N41: =I41/D_R -> 101.1483583 | O41: =J41/D_R -> 107.0970868
B42: 115 | C42: =B42*D_R -> 2.00712864 | D42: -60.56545654 | E42: 22.65769468 | F42: 64.66487187 | G42: 2.783608978 | H42: 0.8428132969 | I42: 1.834352136 | J42: 1.940795681 | K42: 0.106443545 | L42: 1.449067153 | M42: 60.8106922 | N42: =I42/D_R -> 105.1006356 | O42: =J42/D_R -> 111.1994014
B43: 120 | C43: =B43*D_R -> 2.094395102 | D43: -62.5 | E43: 21.65063509 | F43: 66.14378278 | G43: 2.808119481 | H43: 0.7964704969 | I43: 1.901808055 | J43: 2.011648984 | K43: 0.1098409296 | L43: -0.6151657961 | M43: 59.84423032 | N43: =I43/D_R -> 108.965575 | O43: =J43/D_R -> 115.2589967
B44: 125 | C44: =B44*D_R -> 2.181661565 | D44: -64.33941091 | E44: 20.47880111 | F44: 67.51993106 | G44: 2.833438675 | H44: 0.7519078501 | I44: 1.967427992 | J44: 2.081530825 | K44: 0.1141028336 | L44: -2.617461588 | M44: 58.72270133 | N44: =I44/D_R -> 112.7253204 | O44: =J44/D_R -> 119.2629312
B45: 130 | C45: =B45*D_R -> 2.268928028 | D45: -66.06969024 | E45: 19.15111108 | F45: 68.78930894 | G45: 2.859462272 | H45: 0.7092794717 | I45: 2.030842717 | J45: 2.1501828 | K45: 0.1193400832 | L45: -4.548193616 | M45: 57.4558773 | N45: =I45/D_R -> 116.3587166 | O45: =J45/D_R -> 123.1963996
B46: 135 | C46: =B46*D_R -> 2.35619449 | D46: -67.67766953 | E46: 17.67766953 | F46: 69.9483163 | G46: 2.88609728 | H46: 0.668791732 | I46: 2.091613332 | J46: 2.217305548 | K46: 0.1256922164 | L46: -6.399720685 | M46: 56.05484855 | N46: =I46/D_R -> 119.8406163 | O46: =J46/D_R -> 127.0422498
B47: 140 | C47: =B47*D_R -> 2.443460953 | D47: -69.15111108 | E47: 16.06969024 | F47: 70.99373992 | G47: 2.913260149 | H47: 0.6307099765 | I47: 2.149218787 | J47: 2.282550173 | K47: 0.1333313852 | L47: -8.166658203 | M47: 54.5319028 | N47: =I47/D_R -> 123.1411658 | O47: =J47/D_R -> 130.7804914
B48: 145 | C48: =B48*D_R -> 2.530727415 | D48: -70.47880111 | E48: 14.33941091 | F48: 71.92273709 | G48: 2.940875201 | H48: 0.5953646673 | I48: 2.203044728 | J48: 2.345510534 | K48: 0.1424658065 | L48: -9.846131657 | M48: 52.90035411 | N48: =I48/D_R -> 126.225165 | O48: =J48/D_R -> 134.3878544
B49: 150 | C49: =B49*D_R -> 2.617993878 | D49: -71.65063509 | E49: 12.5 | F49: 72.73282278 | G49: 2.968873289 | H49: 0.5631549604 | I49: 2.252376798 | J49: 2.405718328 | K49: 0.15334153 | L49: -11.43796435 | M49: 51.17429839 | N49: =I49/D_R -> 129.0516844 | O49: =J49/D_R -> 137.8375069
B50: 155 | C50: =B50*D_R -> 2.705260341 | D50: -72.65769468 | E50: 10.56545654 | F50: 73.4218596 | G50: 2.997190639 | H50: 0.5345465262 | I50: 2.296403545 | J50: 2.462644113 | K50: 0.1662405682 | L50: -12.94472096 | M50: 49.36826754 | N50: =I50/D_R -> 131.5742312 | O50: =J50/D_R -> 141.0991141
B51: 160 | C51: =B51*D_R -> 2.792526803 | D51: -73.49231552 | E51: 8.550503583 | F51: 73.98805006 | G51: 3.025767847 | H51: 0.5100592023 | I51: 2.334235936 | J51: 2.515708645 | K51: 0.1814727089 | L51: -14.37149559 | M51: 47.49675685 | N51: =I51/D_R -> 133.7418675 | O51: =J51/D_R -> 144.1394878
B52: 165 | C52: =B52*D_R -> 2.879793266 | D52: -74.14814566 | E52: 6.470476128 | F52: 74.42993058 | G52: 3.054548987 | H52: 0.4902396732 | I52: 2.364951202 | J52: 2.564309314 | K52: 0.199358112 | L52: -15.72531681 | M52: 45.5736212 | N52: =I52/D_R -> 135.5017226 | O52: =J52/D_R -> 146.924101
B53: 170 | C53: =B53*D_R -> 2.967059728 | D53: -74.62019383 | E53: 4.341204442 | F53: 74.74636702 | G53: 3.083480816 | H53: 0.4756162023 | I53: 2.387665686 | J53: 2.607864613 | K53: 0.2201989272 | L53: -17.01407652 | M53: 43.61138371 | N53: =I53/D_R -> 136.8031667 | O53: =J53/D_R -> 149.4196359
B54: 175 | C54: =B54*D_R -> 3.054326191 | D54: -74.90486745 | E54: 2.178893569 | F54: 74.93655146 | G54: 3.112512043 | H54: 0.4666378427 | I54: 2.401632731 | J54: 2.6458742 | K54: 0.244241469 | L54: -18.24501235 | M54: 41.62057622 | N54: =I54/D_R -> 137.6034194 | O54: =J54/D_R -> 151.5974248
B55: 180 | C55: =B55*D_R -> 3.141592654 | D55: -75 | E55: 3.062871137e-15 | F55: 75 | G55: 3.141592654 | H55: 0.4636090276 | I55: 2.406347996 | J55: 2.677983626 | K55: 0.2716356304 | L55: -19.42298034 | M55: 39.60930259 | N55: =I55/D_R -> 137.8735842 | O55: =J55/D_R -> 153.4371594
B56: 185 | C56: =B56*D_R -> 3.228859116 | D56: -74.90486745 | E56: -2.178893569 | F56: 74.93655146 | G56: -3.112512043 | H56: 0.4666378427 | I56: 2.401632731 | J56: -3.579149885 | K56: -5.980782616 | L56: -20.54895678 | M56: 37.58322461 | N56: =I56/D_R -> 137.6034194 | O56: =J56/D_R+360 -> 154.9298173
B57: 190 | C57: =B57*D_R -> 3.316125579 | D57: -74.62019383 | E57: -4.341204442 | F57: 74.74636702 | G57: -3.083480816 | H57: 0.4756162023 | I57: 2.387665686 | J57: -3.559097018 | K57: -5.946762704 | L57: -21.61924643 | M57: 35.54606564 | N57: =I57/D_R -> 136.8031667 | O57: =J57/D_R+360 -> 156.078762
B58: 195 | C58: =B58*D_R -> 3.403392041 | D58: -74.14814566 | E58: -6.470476128 | F58: 74.42993058 | G58: -3.054548987 | H58: 0.4902396732 | I58: 2.364951202 | J58: -3.54478866 | K58: -5.909739862 | L58: -22.62565747 | M58: 33.50053874 | N58: =I58/D_R -> 135.5017226 | O58: =J58/D_R+360 -> 156.8985705
B59: 200 | C59: =B59*D_R -> 3.490658504 | D59: -73.49231552 | E59: -8.550503583 | F59: 73.98805006 | G59: -3.025767847 | H59: 0.5100592023 | I59: 2.334235936 | J59: -3.535827049 | K59: -5.870062985 | L59: -23.55653454 | M59: 31.44944487 | N59: =I59/D_R -> 133.7418675 | O59: =J59/D_R+360 -> 157.412033
B60: 205 | C60: =B60*D_R -> 3.577924967 | D60: -72.65769468 | E60: -10.56545654 | F60: 73.4218596 | G60: -2.997190639 | H60: 0.5345465262 | I60: 2.296403545 | J60: -3.531737165 | K60: -5.82814071 | L60: -24.39825498 | M60: 29.39665614 | N60: =I60/D_R -> 131.5742312 | O60: =J60/D_R+360 -> 157.6463661
B61: 210 | C61: =B61*D_R -> 3.665191429 | D61: -71.65063509 | E61: -12.5 | F61: 72.73282278 | G61: -2.968873289 | H61: 0.5631549604 | I61: 2.252376798 | J61: -3.532028249 | K61: -5.784405048 | L61: -25.1367433 | M61: 27.34779855 | N61: =I61/D_R -> 129.0516844 | O61: =J61/D_R+360 -> 157.6296882
B62: 215 | C62: =B62*D_R -> 3.752457892 | D62: -70.47880111 | E62: -14.33941091 | F62: 71.92273709 | G62: -2.940875201 | H62: 0.5953646673 | I62: 2.203044728 | J62: -3.536239869 | K62: -5.739284596 | L62: -25.75870198 | M62: 25.31059094 | N62: =I62/D_R -> 126.225165 | O62: =J62/D_R+360 -> 157.3883802
B63: 220 | C63: =B63*D_R -> 3.839724354 | D63: -69.15111108 | E63: -16.06969024 | F63: 70.99373992 | G63: -2.913260149 | H63: 0.6307099765 | I63: 2.149218787 | J63: -3.543970126 | K63: -5.693188913 | L63: -26.25245028 | M63: 23.29490021 | N63: =I63/D_R -> 123.1411658 | O63: =J63/D_R+360 -> 156.9454691
B64: 225 | C64: =B64*D_R -> 3.926990817 | D64: -67.67766953 | E64: -17.67766953 | F64: 69.9483163 | G64: -2.88609728 | H64: 0.668791732 | I64: 2.091613332 | J64: -3.554889012 | K64: -5.646502344 | L64: -26.60840111 | M64: 21.31261174 | N64: =I64/D_R -> 119.8406163 | O64: =J64/D_R+360 -> 156.319863
B65: 230 | C65: =B65*D_R -> 4.01425728 | D65: -66.06969024 | E65: -19.15111108 | F65: 68.78930894 | G65: -2.859462272 | H65: 0.7092794717 | I65: 2.030842717 | J65: -3.568741744 | K65: -5.599584461 | L65: -26.81926442 | M65: 19.37740635 | N65: =I65/D_R -> 116.3587166 | O65: =J65/D_R+360 -> 155.5261599
B66: 235 | C66: =B66*D_R -> 4.101523742 | D66: -64.33941091 | E66: -20.47880111 | F66: 67.51993106 | G66: -2.833438675 | H66: 0.7519078501 | I66: 1.967427992 | J66: -3.585346526 | K66: -5.552774517 | L66: -26.88006934 | M66: 17.50450952 | N66: =I66/D_R -> 112.7253204 | O66: =J66/D_R+360 -> 154.574776
B67: 240 | C67: =B67*D_R -> 4.188790205 | D67: -62.5 | E67: -21.65063509 | F67: 66.14378278 | G67: -2.808119481 | H67: 0.7964704969 | I67: 1.901808055 | J67: -3.604589978 | K67: -5.506398033 | L67: -26.78807579 | M67: 15.71045282 | N67: =I67/D_R -> 108.965575 | O67: =J67/D_R+360 -> 153.4722074
B68: 245 | C68: =B68*D_R -> 4.276056667 | D68: -60.56545654 | E68: -22.65769468 | F68: 64.66487187 | G68: -2.783608978 | H68: 0.8428132969 | I68: 1.834352136 | J68: -3.626422275 | K68: -5.460774412 | L68: -26.54262135 | M68: 14.01286852 | N68: =I68/D_R -> 105.1006356 | O68: =J68/D_R+360 -> 152.2213089
B69: 250 | C69: =B69*D_R -> 4.36332313 | D69: -58.55050358 | E69: -23.49231552 | F69: 63.0876403 | G69: -2.760024955 | H69: 0.8908281711 | I69: 1.765371885 | J69: -3.650853126 | K69: -5.416225011 | L69: -26.14492777 | M69: 12.43032689 | N69: =I69/D_R -> 101.1483583 | O69: =J69/D_R+360 -> 150.8215242
B70: 255 | C70: =B70*D_R -> 4.450589593 | D70: -56.47047613 | E70: -24.14814566 | F70: 61.41699775 | G70: -2.737501334 | H70: 0.9404478552 | I70: 1.695132311 | J70: -3.67794919 | K70: -5.3730815 | L70: -25.59787619 | M70: 10.98221965 | N70: =I70/D_R -> 97.12392713 | O70: =J70/D_R+360 -> 149.2690342
B71: 260 | C71: =B71*D_R -> 4.537856055 | D71: -54.34120444 | E71: -24.62019383 | F71: 59.65836441 | G71: -2.71619133 | H71: 0.991641837 | I71: 1.623861376 | J71: -3.707833167 | K71: -5.331694543 | L71: -24.90574928 | M71: 9.688689801 | N71: =I71/D_R -> 93.04040334 | O71: =J71/D_R+360 -> 147.5568084
B72: 265 | C72: =B72*D_R -> 4.625122518 | D72: -52.17889357 | E72: -24.90486745 | F72: 57.81772528 | G72: -2.696271246 | H72: 1.044413429 | I72: 1.551758296 | J72: -3.740684674 | K72: -5.29244297 | L72: -24.07393055 | M72: 8.570606488 | N72: =I72/D_R -> 88.90920117 | O72: =J72/D_R+360 -> 145.6745557
B73: 270 | C73: =B73*D_R -> 4.71238898 | D73: -50 | E73: -25 | F73: 55.90169944 | G73: -2.677945045 | H73: 1.098797853 | I73: 1.479000796 | J73: -3.776742898 | K73: -5.255743694 | L73: -23.10854402 | M73: 7.649581827 | N73: =I73/D_R -> 84.74050354 | O73: =J73/D_R+360 -> 143.6085716
B74: 275 | C74: =B74*D_R -> 4.799655443 | D74: -47.82110643 | E74: -24.90486745 | F74: 53.91762832 | G74: -2.661449845 | H74: 1.154861158 | I74: 1.405751598 | J74: -3.816311003 | K74: -5.222062601 | L74: -22.01601005 | M74: 6.948023135 | N74: =I74/D_R -> 80.5436336 | O74: =J74/D_R+360 -> 141.3414862
B75: 280 | C75: =B75*D_R -> 4.886921906 | D75: -45.65879556 | E75: -24.62019383 | F75: 51.87368847 | G75: -2.647062504 | H75: 1.212699681 | I75: 1.332164463 | J75: -3.859762185 | K75: -5.191926648 | L75: -20.80248531 | M75: 6.489207741 | N75: =I75/D_R -> 76.32740137 | O75: =J75/D_R+360 -> 138.8519169
B76: 285 | C76: =B76*D_R -> 4.974188368 | D76: -43.52952387 | E76: -24.14814566 | F76: 49.77903562 | G76: -2.635107426 | H76: 1.272439689 | I76: 1.258390181 | J76: -3.907547115 | K76: -5.165937296 | L76: -19.47314467 | M76: 6.297355491 | N76: =I76/D_R -> 72.10044637 | O76: =J76/D_R+360 -> 136.1140421
B77: 290 | C77: =B77*D_R -> 5.061454831 | D77: -41.44949642 | E77: -23.49231552 | F77: 47.64398852 | G77: -2.625965717 | H77: 1.33423653 | I77: 1.18458291 | J77: -3.960202247 | K77: -5.144785157 | L77: -18.03125314 | M77: 6.397652852 | N77: =I77/D_R -> 67.87160123 | O77: =J77/D_R+360 -> 133.0971253
B78: 295 | C78: =B78*D_R -> 5.148721293 | D78: -39.43454346 | E78: -22.65769468 | F78: 45.48026325 | G78: -2.620085612 | H78: 1.398272285 | I78: 1.110907428 | J78: -4.018357897 | K78: -5.129265326 | L78: -16.47696757 | M78: 6.816146237 | N78: =I78/D_R -> 63.65030707 | O78: =J78/D_R+360 -> 129.7650519
B79: 300 | C79: =B79*D_R -> 5.235987756 | D79: -37.5 | E79: -21.65063509 | F79: 43.30127019 | G79: -2.617993878 | H79: 1.464750127 | I79: 1.037548018 | J79: -4.082744005 | K79: -5.120292022 | L79: -14.80580955 | M79: 7.57936259 | N79: =I79/D_R -> 59.44712245 | O79: =J79/D_R+360 -> 126.0759997
B80: 305 | C80: =B80*D_R -> 5.323254219 | D80: -35.66058909 | E80: -20.47880111 | F80: 41.12248666 | G80: -2.620307275 | H80: 1.533882382 | I80: 0.9647199968 | J80: -4.154189657 | K80: -5.118909654 | L80: -13.00677918 | M80: 8.713421959 | N80: =I80/D_R -> 55.27438423 | O80: =J80/D_R+360 -> 121.9824654
B81: 310 | C81: =B81*D_R -> 5.410520681 | D81: -33.93030976 | E81: -19.15111108 | F81: 38.96191699 | G81: -2.627742171 | H81: 1.605867253 | I81: 0.892685404 | J81: -4.233609424 | K81: -5.126294828 | L81: -11.06016642 | M81: 10.24227045 | N81: =I81/D_R -> 51.14710608 | O81: =J81/D_R+360 -> 117.4320479
B82: 315 | C82: =B82*D_R -> 5.497787144 | D82: -32.32233047 | E82: -17.67766953 | F82: 36.84064396 | G82: -2.641118617 | H82: 1.680845827 | I82: 0.8217750434 | J82: -4.321964444 | K82: -5.143739487 | L82: -8.935327688 | M82: 12.18448677 | N82: =I82/D_R -> 47.08424169 | O82: =J82/D_R+360 -> 112.3696782
B83: 320 | C83: =B83*D_R -> 5.585053606 | D83: -30.84888892 | E83: -16.06969024 | F83: 34.78345716 | G83: -2.661352334 | H83: 1.758826019 | I83: 0.7524201847 | J83: -4.420178353 | K83: -5.172598538 | L83: -6.5891308 | M83: 14.54795088 | N83: =I83/D_R -> 43.110501 | O83: =J83/D_R+360 -> 106.7424357
B84: 325 | C84: =B84*D_R -> 5.672320069 | D84: =-$B$1+$B$2*COS(C84) -> -29.52119889 | E84: =$B$2*SIN(C84) -> -14.33941091 | F84: =SQRT(D84^2+E84^2) -> 32.81950471 | G84: =ATAN2(D84,E84) -> -2.689423912 | H84: =ACOS((F84^2+$B$4^2-$B$3^2)/(2*F84*$B$4)) -> 1.839553273 | I84: =ACOS(($B$3^2+$B$4^2-F84^2)/(2*$B$3*$B$4)) -> 0.6851986201 | J84: =G84-H84 -> -4.528977186 | K84: =J84-I84 -> -5.214175806 | L84: =$B$2*COS(C84)+$E$1*COS(K84+$E$3) -> -3.966564647 | M84: =$B$2*SIN(C84)+$E$1*SIN(K84+$E$3) -> 17.32167077 | N84: =I84/D_R -> 39.25898906 | O84: =J84/D_R+360 -> 100.5087217
B85: 330 | C85: =B85*D_R -> 5.759586532 | D85: -28.34936491 | E85: -12.5 | F85: 30.98284187 | G85: -2.726309415 | H85: 1.922300862 | I85: 0.62090119 | J85: -4.648610277 | K85: -5.269511467 | L85: -1.006221011 | M85: 20.46463061 | N85: =I85/D_R -> 35.57501768 | O85: =J85/D_R+360 -> 93.65425054
B86: 335 | C86: =B86*D_R -> 5.846852994 | D86: -27.34230532 | E86: -10.56545654 | F86: 29.31263435 | G86: -2.772852708 | H86: 2.005552152 | I86: 0.5606246207 | J86: -4.778404859 | K86: -5.33902948 | L86: 2.34535429 | M86: 23.89334245 | N86: =I86/D_R -> 32.12142466 | O86: =J86/D_R+360 -> 86.21756875
B87: 340 | C87: =B87*D_R -> 5.934119457 | D87: -26.50768448 | E87: -8.550503583 | F87: 27.85262013 | G87: -2.829562914 | H87: 2.086572344 | I87: 0.5058893574 | J87: -4.916135259 | K87: -5.422024616 | L87: 6.106523207 | M87: 27.47357483 | N87: =I87/D_R -> 28.98532508 | O87: =J87/D_R+360 -> 78.32619816
B88: 345 | C88: =B88*D_R -> 6.021385919 | D88: -25.85185434 | E88: -6.470476128 | F88: 26.64930457 | G88: -2.896340504 | H88: 2.160959288 | I88: 0.4587542392 | J88: -5.057299791 | K88: -5.51605403 | L88: 10.22148892 | M88: 31.02683354 | N88: =I88/D_R -> 26.28468174 | O88: =J88/D_R+360 -> 70.23806623
B89: 350 | C89: =B89*D_R -> 6.108652382 | D89: -25.37980617 | E89: -4.341204442 | F89: 25.74841 | G89: -2.972182603 | H89: 2.222475719 | I89: 0.4218334585 | J89: -5.194658322 | K89: -5.61649178 | L89: 14.52353894 | M89: 34.36354411 | N89: =I89/D_R -> 24.16927683 | O89: =J89/D_R+360 -> 62.36800214
B90: 355 | C90: =B90*D_R -> 6.195918845 | D90: -25.09513255 | E90: -2.178893569 | F90: 25.18954654 | G90: -3.054984508 | H90: 2.263752621 | I90: 0.3980234089 | J90: -5.318737129 | K90: -5.716760538 | L90: 18.73330242 | M90: 37.34213609 | N90: =I90/D_R -> 22.80506148 | O90: =J90/D_R+360 -> 55.25881018
B91: 360 | C91: =B91*D_R -> 6.283185307 | D91: -25 | E91: -6.125742275e-15 | F91: 25 | G91: -3.141592654 | H91: 2.278380764 | I91: 0.3897607328 | J91: -5.419973417 | K91: -5.80973415 | L91: 22.52421106 | M91: 39.92330734 | N91: =I91/D_R -> 22.33164501 | O91: =J91/D_R+360 -> 49.45839813

Sheet Sheet2
A1: a1 | B1: 50 | D1: b3=AC | E1: 40
A2: a2 | B2: 25 | D2: c3=BC | E2: 50
A3: a3 | B3: 50 | D3: b3 | E3: =AngCos(B3,E1,E2) -> 1.159279481
A4: a4 | B4: 30
B8: q12 | C8: q13 | D8: q14 | O8: q12 | P8: q14
B9: 150 | C9: =FourBar2($B$2,$B$3,$B$4,$B$1,1,B9*D_R) -> 0.15334153 | D9: 2.405718328 | O9: 150 | P9: =FourBar(B2,B3,B4,B1,1,O9*D_R) -> 2.405718328
C12: Radians | E12: Degrees
B13: q12 | C13: q13 | D13: q14 | E13: q13 | F13: q14
B14: 0 | C14: =FourBar2($B$2,$B$3,$B$4,$B$1,1,B14*D_R) -> 0.4734511573 | D14: 0.8632118901 | E14: =C14/D_R -> 27.12675312 | F14: =D14/D_R -> 49.45839813
B15: 5 | C15: =FourBar2($B$2,$B$3,$B$4,$B$1,1,B15*D_R) -> 0.3932084775 | D15: 0.7912318864 | E15: =C15/D_R -> 22.52918623 | F15: =D15/D_R -> 45.33424771
B16: 10 | C16: =FourBar2($B$2,$B$3,$B$4,$B$1,1,B16*D_R) -> 0.3278734257 | D16: 0.7497068841 | E16: =C16/D_R -> 18.78576351 | F16: =D16/D_R -> 42.95504033
B17: 15 | C17: =FourBar2($B$2,$B$3,$B$4,$B$1,1,B17*D_R) -> 0.2766269766 | D17: 0.7353812158 | E17: =C17/D_R -> 15.84955826 | F17: =D17/D_R -> 42.13424
B18: 20 | C18: =FourBar2($B$2,$B$3,$B$4,$B$1,1,B18*D_R) -> 0.2371012125 | D18: 0.7429905699 | E18: =C18/D_R -> 13.58489879 | F18: =D18/D_R -> 42.57022387
B19: 25 | C19: =FourBar2($B$2,$B$3,$B$4,$B$1,1,B19*D_R) -> 0.2066759353 | D19: 0.767300556 | E19: =C19/D_R -> 11.84165882 | F19: =D19/D_R -> 43.96308348
B20: 30 | C20: =FourBar2($B$2,$B$3,$B$4,$B$1,1,B20*D_R) -> 0.1831073627 | D20: 0.8040085527 | E20: =C20/D_R -> 10.49127908 | F20: =D20/D_R -> 46.06629676
B21: 35 | C21: =FourBar2($B$2,$B$3,$B$4,$B$1,1,B21*D_R) -> 0.1646720187 | D21: 0.8498706388 | E21: =C21/D_R -> 9.435011678 | F21: =D21/D_R -> 48.69400074
B22: 40 | C22: =FourBar2($B$2,$B$3,$B$4,$B$1,1,B22*D_R) -> 0.1501061294 | D22: 0.9025263141 | E22: =C22/D_R -> 8.600447695 | F22: =D22/D_R -> 51.7109487
B23: 45 | C23: =FourBar2($B$2,$B$3,$B$4,$B$1,1,B23*D_R) -> 0.1384977466 | D23: 0.96027279 | E23: =C23/D_R -> 7.935336352 | F23: =D23/D_R -> 55.01957805
B24: 50 | C24: =FourBar2($B$2,$B$3,$B$4,$B$1,1,B24*D_R) -> 0.1291895147 | D24: 1.021874919 | E24: =C24/D_R -> 7.402013949 | F24: =D24/D_R -> 58.54912003
B25: 55 | C25: =FourBar2($B$2,$B$3,$B$4,$B$1,1,B25*D_R) -> 0.1217048962 | D25: 1.086424893 | E25: =C25/D_R -> 6.973176898 | F25: =D25/D_R -> 62.24756113
B26: 60 | C26: =FourBar2($B$2,$B$3,$B$4,$B$1,1,B26*D_R) -> 0.1156957335 | D26: 1.153243751 | E26: =C26/D_R -> 6.628877239 | F26: =D26/D_R -> 66.07599969
B27: 65 | C27: =FourBar2($B$2,$B$3,$B$4,$B$1,1,B27*D_R) -> 0.1109058984 | D27: 1.221813327 | E27: =C27/D_R -> 6.354439901 | F27: =D27/D_R -> 70.00474697
B28: 70 | C28: =FourBar2($B$2,$B$3,$B$4,$B$1,1,B28*D_R) -> 0.1071462771 | D28: 1.291729187 | E28: =C28/D_R -> 6.139029468 | F28: =D28/D_R -> 74.01063069
B29: 75 | C29: =FourBar2($B$2,$B$3,$B$4,$B$1,1,B29*D_R) -> 0.1042775561 | D29: 1.362667737 | E29: =C29/D_R -> 5.974663861 | F29: =D29/D_R -> 78.07511023
B30: 80 | C30: =FourBar2($B$2,$B$3,$B$4,$B$1,1,B30*D_R) -> 0.1021983589 | D30: 1.434362822 | E30: =C30/D_R -> 5.855534637 | F30: =D30/D_R -> 82.182936
B31: 85 | C31: =FourBar2($B$2,$B$3,$B$4,$B$1,1,B31*D_R) -> 0.1008370899 | D31: 1.506588688 | E31: =C31/D_R -> 5.77753967 | F31: =D31/D_R -> 86.32117327
B32: 90 | C32: =FourBar2($B$2,$B$3,$B$4,$B$1,1,B32*D_R) -> 0.1001463948 | D32: 1.579147191 | E32: =C32/D_R -> 5.737965757 | F32: =D32/D_R -> 90.47846929
B33: 95 | C33: =FourBar2($B$2,$B$3,$B$4,$B$1,1,B33*D_R) -> 0.1000995216 | D33: 1.651857817 | E33: =C33/D_R -> 5.73528012 | F33: =D33/D_R -> 94.64448129
B34: 100 | C34: =FourBar2($B$2,$B$3,$B$4,$B$1,1,B34*D_R) -> 0.1006881177 | D34: 1.724549493 | E34: =C34/D_R -> 5.76900419 | F34: =D34/D_R -> 98.80940753
B35: 105 | C35: =FourBar2($B$2,$B$3,$B$4,$B$1,1,B35*D_R) -> 0.1019211683 | D35: 1.797053479 | E35: =C35/D_R -> 5.839652789 | F35: =D35/D_R -> 102.9635799
B36: 110 | C36: =FourBar2($B$2,$B$3,$B$4,$B$1,1,B36*D_R) -> 0.1038248995 | D36: 1.869196784 | E36: =C36/D_R -> 5.948728549 | F36: =D36/D_R -> 107.0970868
B37: 115 | C37: =FourBar2($B$2,$B$3,$B$4,$B$1,1,B37*D_R) -> 0.106443545 | D37: 1.940795681 | E37: =C37/D_R -> 6.098765885 | F37: =D37/D_R -> 111.1994014
B38: 120 | C38: =FourBar2($B$2,$B$3,$B$4,$B$1,1,B38*D_R) -> 0.1098409296 | D38: 2.011648984 | E38: =C38/D_R -> 6.293421681 | F38: =D38/D_R -> 115.2589967
B39: 125 | C39: =FourBar2($B$2,$B$3,$B$4,$B$1,1,B39*D_R) -> 0.1141028336 | D39: 2.081530825 | E39: =C39/D_R -> 6.537610797 | F39: =D39/D_R -> 119.2629312
B40: 130 | C40: =FourBar2($B$2,$B$3,$B$4,$B$1,1,B40*D_R) -> 0.1193400832 | D40: 2.1501828 | E40: =C40/D_R -> 6.837683096 | F40: =D40/D_R -> 123.1963996
B41: 135 | C41: =FourBar2($B$2,$B$3,$B$4,$B$1,1,B41*D_R) -> 0.1256922164 | D41: 2.217305548 | E41: =C41/D_R -> 7.201633515 | F41: =D41/D_R -> 127.0422498
B42: 140 | C42: =FourBar2($B$2,$B$3,$B$4,$B$1,1,B42*D_R) -> 0.1333313852 | D42: 2.282550173 | E42: =C42/D_R -> 7.639325648 | F42: =D42/D_R -> 130.7804914
B43: 145 | C43: =FourBar2($B$2,$B$3,$B$4,$B$1,1,B43*D_R) -> 0.1424658065 | D43: 2.345510534 | E43: =C43/D_R -> 8.162689439 | F43: =D43/D_R -> 134.3878544
B44: 150 | C44: =FourBar2($B$2,$B$3,$B$4,$B$1,1,B44*D_R) -> 0.15334153 | D44: 2.405718328 | E44: =C44/D_R -> 8.785822496 | F44: =D44/D_R -> 137.8375069
B45: 155 | C45: =FourBar2($B$2,$B$3,$B$4,$B$1,1,B45*D_R) -> 0.1662405682 | D45: 2.462644113 | E45: =C45/D_R -> 9.524882941 | F45: =D45/D_R -> 141.0991141
B46: 160 | C46: =FourBar2($B$2,$B$3,$B$4,$B$1,1,B46*D_R) -> 0.1814727089 | D46: 2.515708645 | E46: =C46/D_R -> 10.39762032 | F46: =D46/D_R -> 144.1394878
B47: 165 | C47: =FourBar2($B$2,$B$3,$B$4,$B$1,1,B47*D_R) -> 0.199358112 | D47: 2.564309314 | E47: =C47/D_R -> 11.42237843 | F47: =D47/D_R -> 146.924101
B48: 170 | C48: =FourBar2($B$2,$B$3,$B$4,$B$1,1,B48*D_R) -> 0.2201989272 | D48: 2.607864613 | E48: =C48/D_R -> 12.61646918 | F48: =D48/D_R -> 149.4196359
B49: 175 | C49: =FourBar2($B$2,$B$3,$B$4,$B$1,1,B49*D_R) -> 0.244241469 | D49: 2.6458742 | E49: =C49/D_R -> 13.99400536 | F49: =D49/D_R -> 151.5974248
B50: 180 | C50: =FourBar2($B$2,$B$3,$B$4,$B$1,1,B50*D_R) -> 0.2716356304 | D50: 2.677983626 | E50: =C50/D_R -> 15.56357519 | F50: =D50/D_R -> 153.4371594
B51: 185 | C51: =FourBar2($B$2,$B$3,$B$4,$B$1,1,B51*D_R) -> 0.3024026912 | D51: 2.704035422 | E51: =C51/D_R -> 17.32639792 | F51: =D51/D_R -> 154.9298173
B52: 190 | C52: =FourBar2($B$2,$B$3,$B$4,$B$1,1,B52*D_R) -> 0.3364226031 | D52: 2.724088289 | E52: =C52/D_R -> 19.27559529 | F52: =D52/D_R -> 156.078762
B53: 195 | C53: =FourBar2($B$2,$B$3,$B$4,$B$1,1,B53*D_R) -> 0.3734454451 | D53: 2.738396647 | E53: =C53/D_R -> 21.39684788 | F53: =D53/D_R -> 156.8985705
B54: 200 | C54: =FourBar2($B$2,$B$3,$B$4,$B$1,1,B54*D_R) -> 0.4131223223 | D54: 2.747358258 | E54: =C54/D_R -> 23.67016549 | F54: =D54/D_R -> 157.412033
B55: 205 | C55: =FourBar2($B$2,$B$3,$B$4,$B$1,1,B55*D_R) -> 0.4550445975 | D55: 2.751448142 | E55: =C55/D_R -> 26.07213493 | F55: =D55/D_R -> 157.6463661
B56: 210 | C56: =FourBar2($B$2,$B$3,$B$4,$B$1,1,B56*D_R) -> 0.4987802595 | D56: 2.751157058 | E56: =C56/D_R -> 28.57800377 | F56: =D56/D_R -> 157.6296882
B57: 215 | C57: =FourBar2($B$2,$B$3,$B$4,$B$1,1,B57*D_R) -> 0.5439007111 | D57: 2.746945439 | E57: =C57/D_R -> 31.16321522 | F57: =D57/D_R -> 157.3883802
B58: 220 | C58: =FourBar2($B$2,$B$3,$B$4,$B$1,1,B58*D_R) -> 0.5899963942 | D58: 2.739215182 | E58: =C58/D_R -> 33.80430332 | F58: =D58/D_R -> 156.9454691
B59: 225 | C59: =FourBar2($B$2,$B$3,$B$4,$B$1,1,B59*D_R) -> 0.6366829637 | D59: 2.728296295 | E59: =C59/D_R -> 36.47924671 | F59: =D59/D_R -> 156.319863
B60: 230 | C60: =FourBar2($B$2,$B$3,$B$4,$B$1,1,B60*D_R) -> 0.683600846 | D60: 2.714443563 | E60: =C60/D_R -> 39.16744335 | F60: =D60/D_R -> 155.5261599
B61: 235 | C61: =FourBar2($B$2,$B$3,$B$4,$B$1,1,B61*D_R) -> 0.73041079 | D61: 2.697838782 | E61: =C61/D_R -> 41.84945558 | F61: =D61/D_R -> 154.574776
B62: 240 | C62: =FourBar2($B$2,$B$3,$B$4,$B$1,1,B62*D_R) -> 0.7767872741 | D62: 2.678595329 | E62: =C62/D_R -> 44.50663238 | F62: =D62/D_R -> 153.4722074
B63: 245 | C63: =FourBar2($B$2,$B$3,$B$4,$B$1,1,B63*D_R) -> 0.8224108957 | D63: 2.656763032 | E63: =C63/D_R -> 47.12067335 | F63: =D63/D_R -> 152.2213089
B64: 250 | C64: =FourBar2($B$2,$B$3,$B$4,$B$1,1,B64*D_R) -> 0.8669602964 | D64: 2.632332181 | E64: =C64/D_R -> 49.67316599 | F64: =D64/D_R -> 150.8215242
B65: 255 | C65: =FourBar2($B$2,$B$3,$B$4,$B$1,1,B65*D_R) -> 0.9101038067 | D65: 2.605236118 | E65: =C65/D_R -> 52.14510704 | F65: =D65/D_R -> 149.2690342
B66: 260 | C66: =FourBar2($B$2,$B$3,$B$4,$B$1,1,B66*D_R) -> 0.9514907643 | D66: 2.57535214 | E66: =C66/D_R -> 54.51640504 | F66: =D66/D_R -> 147.5568084
B67: 265 | C67: =FourBar2($B$2,$B$3,$B$4,$B$1,1,B67*D_R) -> 0.990742337 | D67: 2.542500633 | E67: =C67/D_R -> 56.76535449 | F67: =D67/D_R -> 145.6745557
B68: 270 | C68: =FourBar2($B$2,$B$3,$B$4,$B$1,1,B68*D_R) -> 1.027441613 | D68: 2.506442409 | E68: =C68/D_R -> 58.86806811 | F68: =D68/D_R -> 143.6085716
B69: 275 | C69: =FourBar2($B$2,$B$3,$B$4,$B$1,1,B69*D_R) -> 1.061122706 | D69: 2.466874304 | E69: =C69/D_R -> 60.79785262 | F69: =D69/D_R -> 141.3414862
B70: 280 | C70: =FourBar2($B$2,$B$3,$B$4,$B$1,1,B70*D_R) -> 1.091258659 | D70: 2.423423122 | E70: =C70/D_R -> 62.52451551 | F70: =D70/D_R -> 138.8519169
B71: 285 | C71: =FourBar2($B$2,$B$3,$B$4,$B$1,1,B71*D_R) -> 1.117248011 | D71: 2.375638192 | E71: =C71/D_R -> 64.01359569 | F71: =D71/D_R -> 136.1140421
B72: 290 | C72: =FourBar2($B$2,$B$3,$B$4,$B$1,1,B72*D_R) -> 1.138400151 | D72: 2.322983061 | E72: =C72/D_R -> 65.22552403 | F72: =D72/D_R -> 133.0971253
B73: 295 | C73: =FourBar2($B$2,$B$3,$B$4,$B$1,1,B73*D_R) -> 1.153919981 | D73: 2.26482741 | E73: =C73/D_R -> 66.11474483 | F73: =D73/D_R -> 129.7650519
B74: 300 | C74: =FourBar2($B$2,$B$3,$B$4,$B$1,1,B74*D_R) -> 1.162893285 | D74: 2.200441302 | E74: =C74/D_R -> 66.62887724 | F74: =D74/D_R -> 126.0759997
B75: 305 | C75: =FourBar2($B$2,$B$3,$B$4,$B$1,1,B75*D_R) -> 1.164275654 | D75: 2.12899565 | E75: =C75/D_R -> 66.70808114 | F75: =D75/D_R -> 121.9824654
B76: 310 | C76: =FourBar2($B$2,$B$3,$B$4,$B$1,1,B76*D_R) -> 1.15689048 | D76: 2.049575883 | E76: =C76/D_R -> 66.28494183 | F76: =D76/D_R -> 117.4320479
B77: 315 | C77: =FourBar2($B$2,$B$3,$B$4,$B$1,1,B77*D_R) -> 1.13944582 | D77: 1.961220864 | E77: =C77/D_R -> 65.28543648 | F77: =D77/D_R -> 112.3696782
B78: 320 | C78: =FourBar2($B$2,$B$3,$B$4,$B$1,1,B78*D_R) -> 1.11058677 | D78: 1.863006954 | E78: =C78/D_R -> 63.63193468 | F78: =D78/D_R -> 106.7424357
B79: 325 | C79: =FourBar2($B$2,$B$3,$B$4,$B$1,1,B79*D_R) -> 1.069009501 | D79: 1.754208121 | E79: =C79/D_R -> 61.24973268 | F79: =D79/D_R -> 100.5087217
B80: 330
B81: 335
B82: 340
B83: 345
B84: 350
B85: 355
